[Event "*** SCC Grand Prix: Titled Tuesday Blitz"]
[Site "Chess.com"]
[Date "2020.08.04"]
[Round "8"]
[White "eightbyeightchess"]
[Black "NotFischer"]
[Result "1-0"]
[WhiteElo "2435"]
[BlackElo "2206"]
[TimeControl "180+1"]
[EndTime "15:18:07 PDT"]
[Termination "eightbyeightchess won by resignation"]

1. e4 {[%clk 0:03:00.9]} 1... d5 {[%clk 0:02:59.1]} 2. exd5 {[%clk 0:02:57.1]}
2... Nf6 {[%clk 0:02:58.7]} 3. Bb5+ {[%clk 0:02:55.8]} 3... Nbd7 {[%clk
0:02:58.7]} 4. Nc3 {[%clk 0:02:52.2]} 4... a6 {[%clk 0:02:58.8]} 5. Ba4 {[%clk
0:02:49.2]} 5... b5 {[%clk 0:02:58.5]} 6. Bb3 {[%clk 0:02:49.5]} 6... Bb7 {[%clk
0:02:58.7]} 7. Nf3 {[%clk 0:02:48.4]} 7... Nb6 {[%clk 0:02:58.8]} 8. O-O {[%clk
0:02:48]} 8... Nfxd5 {[%clk 0:02:59.1]} 9. d4 {[%clk 0:02:44.2]} 9... e6 {[%clk
0:02:58.6]} 10. Nxd5 {[%clk 0:02:43.8]} 10... Bxd5 {[%clk 0:02:57.7]} 11. Bxd5
{[%clk 0:02:43.3]} 11... Qxd5 {[%clk 0:02:57.1]} 12. c3 {[%clk 0:02:43]} 12...
Be7 {[%clk 0:02:55.3]} 13. Bf4 {[%clk 0:02:42.7]} 13... Rc8 {[%clk 0:02:51.7]}
14. Re1 {[%clk 0:02:40.3]} 14... O-O {[%clk 0:02:46.8]} 15. Re5 {[%clk
0:02:40.3]} 15... Qd7 {[%clk 0:02:34.7]} 16. Qd3 {[%clk 0:02:35]} 16... Nc4
{[%clk 0:02:25.4]} 17. Re2 {[%clk 0:02:33.1]} 17... c5 {[%clk 0:02:15.1]} 18. a4
{[%clk 0:02:30.5]} 18... cxd4 {[%clk 0:02:06.8]} 19. axb5 {[%clk 0:02:29.4]}
19... axb5 {[%clk 0:02:05.3]} 20. Qxd4 {[%clk 0:02:21.5]} 20... Rfd8 {[%clk
0:01:54]} 21. h3 {[%clk 0:02:06.2]} 21... h6 {[%clk 0:01:47.8]} 22. Ra7 {[%clk
0:02:04.2]} 22... Qxd4 {[%clk 0:01:44.4]} 23. Nxd4 {[%clk 0:02:05.1]} 23... Bc5
{[%clk 0:01:43.1]} 24. Nxb5 {[%clk 0:01:47.2]} 24... Bxa7 {[%clk 0:01:42.6]} 25.
Nxa7 {[%clk 0:01:48.1]} 25... Ra8 {[%clk 0:01:42.8]} 26. Nc6 {[%clk 0:01:48.2]}
26... Rd1+ {[%clk 0:01:41.7]} 27. Kh2 {[%clk 0:01:48.1]} 27... Ra2 {[%clk
0:01:36.5]} 28. Re4 {[%clk 0:01:38.3]} 28... Nd2 {[%clk 0:01:28.1]} 29. Bxd2
{[%clk 0:01:16.1]} 29... Rxd2 {[%clk 0:01:27.9]} 30. b4 {[%clk 0:01:16.4]} 30...
Rxf2 {[%clk 0:01:27.5]} 31. Rg4 {[%clk 0:01:17]} 31... Rac2 {[%clk 0:01:23.2]}
32. Rg3 {[%clk 0:01:16.9]} 32... Kf8 {[%clk 0:01:21.7]} 33. b5 {[%clk
0:01:16.1]} 33... Rb2 {[%clk 0:01:18.3]} 34. Nb4 {[%clk 0:01:11.7]} 34... Ke8
{[%clk 0:00:53.4]} 35. Nd3 {[%clk 0:01:11.5]} 35... Rfd2 {[%clk 0:00:50.6]} 36.
Nxb2 {[%clk 0:01:11]} 36... Rxb2 {[%clk 0:00:51.5]} 37. c4 {[%clk 0:00:50.8]}
37... Rb4 {[%clk 0:00:40.1]} 38. Rc3 {[%clk 0:00:49.9]} 38... Kd7 {[%clk
0:00:39]} 39. Kg3 {[%clk 0:00:45.1]} 39... Kd6 {[%clk 0:00:39.3]} 40. c5+ {[%clk
0:00:44.9]} 40... Kc7 {[%clk 0:00:36.9]} 41. b6+ {[%clk 0:00:44.1]} 41... Kc6
{[%clk 0:00:37.1]} 42. Rf3 {[%clk 0:00:37.8]} 42... f5 {[%clk 0:00:35.9]} 43.
Rc3 {[%clk 0:00:26.9]} 43... e5 {[%clk 0:00:34.2]} 44. Kf3 {[%clk 0:00:25.5]}
44... g5 {[%clk 0:00:33.6]} 45. g3 {[%clk 0:00:23.7]} 45... h5 {[%clk 0:00:27]}
46. Ke3 {[%clk 0:00:22.9]} 46... h4 {[%clk 0:00:24.3]} 47. gxh4 {[%clk
0:00:22.2]} 47... Rxh4 {[%clk 0:00:24]} 48. Kd2 {[%clk 0:00:22.1]} 48... g4
{[%clk 0:00:19.9]} 49. hxg4 {[%clk 0:00:22.4]} 49... Rxg4 {[%clk 0:00:20.8]} 50.
Rb3 {[%clk 0:00:19.3]} 50... Kb7 {[%clk 0:00:20.9]} 51. c6+ {[%clk 0:00:19.1]}
51... Kxc6 {[%clk 0:00:17.7]} 52. b7 {[%clk 0:00:19.4]} 52... Rg8 {[%clk
0:00:15.6]} 53. b8=Q {[%clk 0:00:19.5]} 53... Rxb8 {[%clk 0:00:16]} 54. Rxb8
{[%clk 0:00:20.4]} 54... Kd5 {[%clk 0:00:14.5]} 55. Ke3 {[%clk 0:00:20.4]} 1-0

[Event "*** SCC Grand Prix: Titled Tuesday Blitz"]
[Site "Chess.com"]
[Date "2020.08.04"]
[Round "8"]
[White "Alberquintin"]
[Black "Anna_ChessMate"]
[Result "1-0"]
[WhiteElo "2496"]
[BlackElo "2600"]
[TimeControl "180+1"]
[EndTime "15:18:09 PDT"]
[Termination "Alberquintin won by resignation"]

1. e4 {[%clk 0:03:00.1]} 1... c6 {[%clk 0:02:59.8]} 2. d4 {[%clk 0:03:00.2]}
2... d5 {[%clk 0:03:00.7]} 3. Nc3 {[%clk 0:03:00.8]} 3... dxe4 {[%clk
0:03:00.9]} 4. Nxe4 {[%clk 0:03:01.7]} 4... Nd7 {[%clk 0:03:01.2]} 5. Ng5 {[%clk
0:03:01.2]} 5... Ngf6 {[%clk 0:03:00.9]} 6. Bd3 {[%clk 0:03:01.2]} 6... e5
{[%clk 0:03:01.3]} 7. Bc4 {[%clk 0:02:42.6]} 7... Nd5 {[%clk 0:02:59.5]} 8. N1f3
{[%clk 0:02:28]} 8... exd4 {[%clk 0:02:59.2]} 9. O-O {[%clk 0:02:27.6]} 9... Be7
{[%clk 0:02:59.3]} 10. Qxd4 {[%clk 0:02:12.3]} 10... N7f6 {[%clk 0:02:58.4]} 11.
Bd3 {[%clk 0:01:57.4]} 11... O-O {[%clk 0:02:58]} 12. Re1 {[%clk 0:01:56.5]}
12... h6 {[%clk 0:02:57.1]} 13. Ne4 {[%clk 0:01:56.4]} 13... Bf5 {[%clk
0:02:51.1]} 14. Ng3 {[%clk 0:01:43.5]} 14... Bxd3 {[%clk 0:02:47.2]} 15. Qxd3
{[%clk 0:01:44.4]} 15... Bc5 {[%clk 0:02:40]} 16. Bd2 {[%clk 0:01:39.9]} 16...
Qb6 {[%clk 0:02:33.5]} 17. Rf1 {[%clk 0:01:29.5]} 17... Rad8 {[%clk 0:02:28.6]}
18. Qb3 {[%clk 0:01:24.6]} 18... Qc7 {[%clk 0:02:22.3]} 19. Rad1 {[%clk
0:01:19.7]} 19... Rfe8 {[%clk 0:02:16.9]} 20. Bc1 {[%clk 0:01:19]} 20... Ng4
{[%clk 0:02:11.1]} 21. Qc4 {[%clk 0:01:10.3]} 21... Bxf2+ {[%clk 0:02:00.9]} 22.
Rxf2 {[%clk 0:01:08.9]} 22... Nxf2 {[%clk 0:02:01.8]} 23. Kxf2 {[%clk
0:01:08.7]} 23... Qb6+ {[%clk 0:01:40.8]} 24. Qd4 {[%clk 0:01:08.8]} 24... c5
{[%clk 0:01:39.3]} 25. Qc4 {[%clk 0:01:06]} 25... Qc6 {[%clk 0:01:26.9]} 26. Nf5
{[%clk 0:00:48.3]} 26... b5 {[%clk 0:01:15.7]} 27. Qg4 {[%clk 0:00:44.9]} 27...
Qf6 {[%clk 0:00:57.7]} 28. Nxh6+ {[%clk 0:00:37]} 28... Kf8 {[%clk 0:00:57.6]}
29. Bg5 {[%clk 0:00:32.6]} 29... Ne3 {[%clk 0:00:52.8]} 30. Bxe3 {[%clk
0:00:27.6]} 30... Rxd1 {[%clk 0:00:47.9]} 31. Bxc5+ {[%clk 0:00:27.2]} 31... Rd6
{[%clk 0:00:44.9]} 32. Nf5 {[%clk 0:00:21.1]} 32... Rd8 {[%clk 0:00:39.3]} 33.
Nxd6 {[%clk 0:00:18.1]} 33... Kg8 {[%clk 0:00:34.7]} 34. Nf5 {[%clk 0:00:15.7]}
34... Qxb2 {[%clk 0:00:32.6]} 35. Ne7+ {[%clk 0:00:14.4]} 35... Kf8 {[%clk
0:00:30.1]} 36. Nc6+ {[%clk 0:00:08.8]} 36... Kg8 {[%clk 0:00:25.5]} 37. Nxd8
{[%clk 0:00:07.8]} 37... Qxc2+ {[%clk 0:00:25.8]} 38. Kg3 {[%clk 0:00:07.3]}
38... Qxc5 {[%clk 0:00:26]} 39. Qd7 {[%clk 0:00:07]} 39... Qc4 {[%clk
0:00:22.5]} 40. Qxf7+ {[%clk 0:00:06.9]} 40... Qxf7 {[%clk 0:00:22]} 41. Nxf7
{[%clk 0:00:07.8]} 41... Kxf7 {[%clk 0:00:22.9]} 42. Kf4 {[%clk 0:00:08.7]}
42... Ke6 {[%clk 0:00:22.8]} 43. Nd4+ {[%clk 0:00:09]} 43... Kd5 {[%clk
0:00:22.4]} 44. Nxb5 {[%clk 0:00:09.9]} 44... a5 {[%clk 0:00:22.8]} 45. g4
{[%clk 0:00:08.2]} 45... Kc4 {[%clk 0:00:23]} 46. Nd6+ {[%clk 0:00:08.6]} 46...
Kb4 {[%clk 0:00:23.1]} 47. h4 {[%clk 0:00:07.6]} 47... a4 {[%clk 0:00:23.5]} 48.
h5 {[%clk 0:00:06.6]} 48... Ka3 {[%clk 0:00:23.8]} 49. Nb5+ {[%clk 0:00:06.9]}
49... Kb4 {[%clk 0:00:22.7]} 50. Nd4 {[%clk 0:00:07.2]} 50... Ka3 {[%clk
0:00:23.1]} 51. g5 {[%clk 0:00:06.2]} 51... Kxa2 {[%clk 0:00:23.2]} 52. h6
{[%clk 0:00:06.8]} 52... gxh6 {[%clk 0:00:23.1]} 53. gxh6 {[%clk 0:00:07.7]}
53... Kb2 {[%clk 0:00:23.2]} 54. Nb5 {[%clk 0:00:07.5]} 54... a3 {[%clk
0:00:24.1]} 55. Nxa3 {[%clk 0:00:07.1]} 55... Kxa3 {[%clk 0:00:25]} 56. h7
{[%clk 0:00:07.2]} 1-0

[Event "*** SCC Grand Prix: Titled Tuesday Blitz"]
[Site "Chess.com"]
[Date "2020.08.04"]
[Round "8"]
[White "ElGasanov"]
[Black "Carnivoras"]
[Result "0-1"]
[WhiteElo "2773"]
[BlackElo "2653"]
[TimeControl "180+1"]
[EndTime "15:18:13 PDT"]
[Termination "Carnivoras won on time"]

1. d4 {[%clk 0:03:00.9]} 1... d5 {[%clk 0:02:56]} 2. c4 {[%clk 0:02:59.7]} 2...
c6 {[%clk 0:02:55.9]} 3. Nf3 {[%clk 0:02:57.7]} 3... e6 {[%clk 0:02:55.1]} 4.
Qb3 {[%clk 0:02:53.9]} 4... Nf6 {[%clk 0:02:54.5]} 5. Bg5 {[%clk 0:02:53.5]}
5... Be7 {[%clk 0:02:53.2]} 6. e3 {[%clk 0:02:54]} 6... O-O {[%clk 0:02:53.1]}
7. Nc3 {[%clk 0:02:53.6]} 7... Nbd7 {[%clk 0:02:52.9]} 8. Rd1 {[%clk 0:02:53]}
8... a6 {[%clk 0:02:52.9]} 9. a4 {[%clk 0:02:48.7]} 9... h6 {[%clk 0:02:49.2]}
10. Bh4 {[%clk 0:02:43.9]} 10... Qc7 {[%clk 0:02:37]} 11. Be2 {[%clk 0:02:29.3]}
11... dxc4 {[%clk 0:02:36.3]} 12. Bxc4 {[%clk 0:02:28.5]} 12... b5 {[%clk
0:02:36.8]} 13. Be2 {[%clk 0:02:23.4]} 13... b4 {[%clk 0:02:35.8]} 14. Ne4
{[%clk 0:02:20.3]} 14... c5 {[%clk 0:02:28.9]} 15. O-O {[%clk 0:02:00.4]} 15...
Bb7 {[%clk 0:02:20.3]} 16. Nxf6+ {[%clk 0:01:49.4]} 16... Nxf6 {[%clk 0:02:19]}
17. dxc5 {[%clk 0:01:44.9]} 17... Qxc5 {[%clk 0:02:12.3]} 18. Rc1 {[%clk
0:01:37.7]} 18... Qb6 {[%clk 0:02:08.8]} 19. Ne5 {[%clk 0:01:37.5]} 19... Bd5
{[%clk 0:01:50.8]} 20. Qc2 {[%clk 0:01:26.4]} 20... Qb7 {[%clk 0:01:48]} 21. Bf3
{[%clk 0:01:22.9]} 21... Rac8 {[%clk 0:01:46]} 22. Qb1 {[%clk 0:01:13.7]} 22...
b3 {[%clk 0:01:44]} 23. e4 {[%clk 0:01:02.3]} 23... Bxe4 {[%clk 0:00:53.5]} 24.
Bxe4 {[%clk 0:00:58.6]} 24... Nxe4 {[%clk 0:00:54.4]} 25. Bxe7 {[%clk
0:00:39.2]} 25... Nd2 {[%clk 0:00:53.7]} 26. Qa1 {[%clk 0:00:17.6]} 26... Rfe8
{[%clk 0:00:36.3]} 27. Rfd1 {[%clk 0:00:13]} 27... Ne4 {[%clk 0:00:22.3]} 28.
Bh4 {[%clk 0:00:11.9]} 28... Qb4 {[%clk 0:00:20]} 29. Nf3 {[%clk 0:00:10.8]}
29... Rc2 {[%clk 0:00:18.7]} 30. Rd4 {[%clk 0:00:10.5]} 30... Qb7 {[%clk
0:00:18.2]} 31. Re1 {[%clk 0:00:10.1]} 31... Nc5 {[%clk 0:00:17.5]} 32. Bg3
{[%clk 0:00:07.1]} 32... Qc6 {[%clk 0:00:17]} 33. Rd6 {[%clk 0:00:06.4]} 33...
Qc8 {[%clk 0:00:16.6]} 34. Nd4 {[%clk 0:00:04.4]} 34... Rc4 {[%clk 0:00:16]} 35.
Nc6 {[%clk 0:00:04.4]} 35... Rxa4 {[%clk 0:00:15.6]} 36. Qd1 {[%clk 0:00:03.5]}
36... Rc4 {[%clk 0:00:14.4]} 37. Ne7+ {[%clk 0:00:03.7]} 37... Rxe7 {[%clk
0:00:13.4]} 38. Rd8+ {[%clk 0:00:04.4]} 38... Re8 {[%clk 0:00:13.6]} 39. Rxc8
{[%clk 0:00:04]} 39... Rxc8 {[%clk 0:00:14.5]} 40. h3 {[%clk 0:00:04.5]} 40...
a5 {[%clk 0:00:11.6]} 41. Qd6 {[%clk 0:00:04.5]} 41... Rc2 {[%clk 0:00:10.3]}
42. Qb6 {[%clk 0:00:03.7]} 42... Rxb2 {[%clk 0:00:09.1]} 43. Be5 {[%clk
0:00:03.7]} 43... Rc2 {[%clk 0:00:08.8]} 44. Qxa5 {[%clk 0:00:03.9]} 44... Nd3
{[%clk 0:00:09.1]} 45. Rf1 {[%clk 0:00:01.9]} 45... Nxe5 {[%clk 0:00:08.3]} 46.
Qxe5 {[%clk 0:00:01.8]} 46... b2 {[%clk 0:00:08.6]} 47. Qb5 {[%clk 0:00:01.4]}
47... Rd2 {[%clk 0:00:06.8]} 48. g3 {[%clk 0:00:01.1]} 48... Rc1 {[%clk
0:00:06.2]} 0-1

[Event "*** SCC Grand Prix: Titled Tuesday Blitz"]
[Site "Chess.com"]
[Date "2020.08.04"]
[Round "8"]
[White "guillembaches"]
[Black "elcandado"]
[Result "0-1"]
[WhiteElo "2421"]
[BlackElo "2591"]
[TimeControl "180+1"]
[EndTime "15:18:16 PDT"]
[Termination "elcandado won on time"]

1. e4 {[%clk 0:02:24.3]} 1... d6 {[%clk 0:02:58.4]} 2. d4 {[%clk 0:02:23.9]}
2... Nf6 {[%clk 0:02:58.1]} 3. f3 {[%clk 0:02:24.2]} 3... h5 {[%clk 0:02:54.8]}
4. Be3 {[%clk 0:02:24.1]} 4... c6 {[%clk 0:02:54]} 5. c4 {[%clk 0:02:24.2]} 5...
e5 {[%clk 0:02:52.5]} 6. Nc3 {[%clk 0:02:24.3]} 6... Nbd7 {[%clk 0:02:48.1]} 7.
Nge2 {[%clk 0:02:23.7]} 7... Be7 {[%clk 0:02:47.3]} 8. Qd2 {[%clk 0:02:23.6]}
8... a6 {[%clk 0:02:44.9]} 9. a4 {[%clk 0:02:22.4]} 9... a5 {[%clk 0:02:44.3]}
10. h4 {[%clk 0:02:04.2]} 10... Qc7 {[%clk 0:02:38.7]} 11. Bg5 {[%clk
0:02:04.1]} 11... exd4 {[%clk 0:02:30.7]} 12. Nxd4 {[%clk 0:02:04.2]} 12... Nc5
{[%clk 0:02:30.3]} 13. Be2 {[%clk 0:01:57.3]} 13... O-O {[%clk 0:02:23.6]} 14.
O-O {[%clk 0:01:56.4]} 14... Ne8 {[%clk 0:02:18.5]} 15. Rad1 {[%clk 0:01:45.3]}
15... Qd8 {[%clk 0:02:09.7]} 16. Nf5 {[%clk 0:01:38.1]} 16... Bxf5 {[%clk
0:01:59.8]} 17. exf5 {[%clk 0:01:37.7]} 17... Qd7 {[%clk 0:01:47.2]} 18. Qc2
{[%clk 0:01:29.9]} 18... Bf6 {[%clk 0:01:35.3]} 19. Be3 {[%clk 0:01:19.7]} 19...
Na6 {[%clk 0:01:28.5]} 20. Ne4 {[%clk 0:01:16.5]} 20... Bxh4 {[%clk 0:01:23.3]}
21. Ng5 {[%clk 0:00:48.3]} 21... Nb4 {[%clk 0:01:16.3]} 22. Qe4 {[%clk
0:00:44.4]} 22... Bg3 {[%clk 0:00:56.5]} 23. f4 {[%clk 0:00:36.6]} 23... h4
{[%clk 0:00:51.4]} 24. Qf3 {[%clk 0:00:32.3]} 24... Qxf5 {[%clk 0:00:45.7]} 25.
Bd4 {[%clk 0:00:29.6]} 25... Nf6 {[%clk 0:00:41.7]} 26. Bxf6 {[%clk 0:00:23.9]}
26... Qxf6 {[%clk 0:00:29.8]} 27. Ne4 {[%clk 0:00:23.8]} 27... Qxb2 {[%clk
0:00:26.2]} 28. Rxd6 {[%clk 0:00:20.6]} 28... Rae8 {[%clk 0:00:21.1]} 29. Ng5
{[%clk 0:00:19.4]} 29... Qxe2 {[%clk 0:00:18.1]} 30. Qxe2 {[%clk 0:00:17.7]}
30... Rxe2 {[%clk 0:00:19]} 31. Rd7 {[%clk 0:00:18]} 31... b6 {[%clk 0:00:16.3]}
32. f5 {[%clk 0:00:17.3]} 32... Nc2 {[%clk 0:00:14.6]} 33. f6 {[%clk 0:00:17.6]}
33... gxf6 {[%clk 0:00:14.2]} 34. Rxf6 {[%clk 0:00:17.1]} 34... Ne3 {[%clk
0:00:13.8]} 35. Ne6 {[%clk 0:00:17.1]} 35... Rxg2+ {[%clk 0:00:12.8]} 36. Kh1
{[%clk 0:00:17.5]} 36... Ng4 {[%clk 0:00:09.5]} 37. Rf5 {[%clk 0:00:13.1]} 37...
Rh2+ {[%clk 0:00:09.1]} 38. Kg1 {[%clk 0:00:12.5]} 38... Bf2+ {[%clk 0:00:08.7]}
39. Kf1 {[%clk 0:00:12.8]} 39... Rh1+ {[%clk 0:00:08.6]} 40. Ke2 {[%clk
0:00:13.1]} 40... Re1+ {[%clk 0:00:08.8]} 41. Kd2 {[%clk 0:00:12.9]} 41... Rxe6
{[%clk 0:00:09.1]} 42. Rg5+ {[%clk 0:00:13.1]} 42... Rg6 {[%clk 0:00:09.2]} 43.
Rxg6+ {[%clk 0:00:13.7]} 43... fxg6 {[%clk 0:00:09.1]} 44. c5 {[%clk 0:00:14.6]}
44... bxc5 {[%clk 0:00:08.8]} 45. Rd6 {[%clk 0:00:14.5]} 45... Kg7 {[%clk
0:00:08.5]} 46. Rxc6 {[%clk 0:00:14.6]} 46... h3 {[%clk 0:00:08.4]} 47. Rc7+
{[%clk 0:00:15.1]} 47... Rf7 {[%clk 0:00:08.3]} 0-1

[Event "*** SCC Grand Prix: Titled Tuesday Blitz"]
[Site "Chess.com"]
[Date "2020.08.04"]
[Round "8"]
[White "peixe64"]
[Black "QuintilianoR"]
[Result "0-1"]
[WhiteElo "2339"]
[BlackElo "2626"]
[TimeControl "180+1"]
[EndTime "15:18:18 PDT"]
[Termination "QuintilianoR won by resignation"]

1. e4 {[%clk 0:03:00.9]} 1... c5 {[%clk 0:02:58.8]} 2. Nf3 {[%clk 0:03:00.8]}
2... d6 {[%clk 0:02:59.1]} 3. d4 {[%clk 0:03:00.9]} 3... cxd4 {[%clk 0:03:00]}
4. Nxd4 {[%clk 0:03:01.6]} 4... Nf6 {[%clk 0:03:00.5]} 5. Nc3 {[%clk 0:03:01.8]}
5... a6 {[%clk 0:03:00.7]} 6. Be2 {[%clk 0:03:00.4]} 6... e5 {[%clk 0:03:00.4]}
7. Nb3 {[%clk 0:03:00.3]} 7... Be7 {[%clk 0:03:00.4]} 8. O-O {[%clk 0:02:59.7]}
8... O-O {[%clk 0:03:00.3]} 9. Be3 {[%clk 0:02:51.5]} 9... Be6 {[%clk
0:02:59.6]} 10. Qd3 {[%clk 0:02:47.4]} 10... Nbd7 {[%clk 0:02:34.5]} 11. Nd5
{[%clk 0:02:34.1]} 11... Bxd5 {[%clk 0:02:33.6]} 12. exd5 {[%clk 0:02:33.7]}
12... Rc8 {[%clk 0:02:34.1]} 13. c4 {[%clk 0:02:23.6]} 13... Ne8 {[%clk
0:02:32.8]} 14. Kh1 {[%clk 0:02:14.2]} 14... f5 {[%clk 0:02:01.2]} 15. f4 {[%clk
0:02:09.4]} 15... g6 {[%clk 0:02:00.2]} 16. Rac1 {[%clk 0:01:53.7]} 16... Nef6
{[%clk 0:01:44.9]} 17. Rfd1 {[%clk 0:01:15]} 17... Ne4 {[%clk 0:01:40.3]} 18.
Bg1 {[%clk 0:00:43.1]} 18... exf4 {[%clk 0:01:35]} 19. Nd4 {[%clk 0:00:38.7]}
19... Ne5 {[%clk 0:01:22.1]} 20. Qb3 {[%clk 0:00:31.3]} 20... Nc5 {[%clk
0:01:15.8]} 21. Qh3 {[%clk 0:00:26.8]} 21... Bg5 {[%clk 0:01:13.3]} 22. b4
{[%clk 0:00:25.9]} 22... Ne4 {[%clk 0:01:10.3]} 23. Ne6 {[%clk 0:00:25]} 23...
Qf6 {[%clk 0:01:10.5]} 24. c5 {[%clk 0:00:20.7]} 24... Rfe8 {[%clk 0:00:51.4]}
25. cxd6 {[%clk 0:00:16.7]} 25... Rxc1 {[%clk 0:00:44.4]} 26. Rxc1 {[%clk
0:00:16.8]} 26... Nxd6 {[%clk 0:00:43.5]} 27. Rc7 {[%clk 0:00:15]} 27... Re7
{[%clk 0:00:30.3]} 28. Rxe7 {[%clk 0:00:15.3]} 28... Qxe7 {[%clk 0:00:31.2]} 29.
Bd4 {[%clk 0:00:14.9]} 29... Ne4 {[%clk 0:00:28.7]} 30. Qb3 {[%clk 0:00:12.4]}
30... Bf6 {[%clk 0:00:20.2]} 31. d6 {[%clk 0:00:12.5]} 31... Qxd6 {[%clk
0:00:19.8]} 32. Bc5 {[%clk 0:00:09.7]} 32... Nxc5 {[%clk 0:00:17.3]} 33. bxc5
{[%clk 0:00:10.1]} 33... Qe7 {[%clk 0:00:16.6]} 34. Nxf4+ {[%clk 0:00:10.5]}
34... Kg7 {[%clk 0:00:15.9]} 35. Nd5 {[%clk 0:00:11.2]} 35... Qf7 {[%clk
0:00:14.9]} 36. Nxf6 {[%clk 0:00:09.8]} 36... Qxb3 {[%clk 0:00:14.1]} 37. Ne8+
{[%clk 0:00:09.3]} 37... Kf8 {[%clk 0:00:14]} 38. axb3 {[%clk 0:00:09.2]} 38...
Kxe8 {[%clk 0:00:14.3]} 39. Kg1 {[%clk 0:00:09.8]} 39... Kd7 {[%clk 0:00:14.1]}
40. b4 {[%clk 0:00:10.1]} 40... Kc6 {[%clk 0:00:13.7]} 41. Kf2 {[%clk
0:00:10.7]} 41... a5 {[%clk 0:00:14.1]} 42. bxa5 {[%clk 0:00:10.2]} 42... Kxc5
{[%clk 0:00:14.3]} 43. Ke3 {[%clk 0:00:11]} 43... Nc4+ {[%clk 0:00:14.4]} 44.
Kf4 {[%clk 0:00:10.8]} 44... Nxa5 {[%clk 0:00:14.2]} 45. Kg5 {[%clk 0:00:11.3]}
45... Nc6 {[%clk 0:00:14.4]} 46. Kh6 {[%clk 0:00:11.5]} 46... b5 {[%clk
0:00:14.8]} 47. Bxb5 {[%clk 0:00:10.3]} 47... Kxb5 {[%clk 0:00:14.3]} 48. Kxh7
{[%clk 0:00:11]} 48... Ne5 {[%clk 0:00:15]} 49. Kg7 {[%clk 0:00:11.2]} 49... Kc5
{[%clk 0:00:15.4]} 50. Kf6 {[%clk 0:00:11.8]} 50... Kd4 {[%clk 0:00:15.5]} 51.
h4 {[%clk 0:00:11.8]} 51... Ke4 {[%clk 0:00:15.5]} 52. g3 {[%clk 0:00:11.3]}
52... f4 {[%clk 0:00:15.1]} 53. gxf4 {[%clk 0:00:10.4]} 53... Kxf4 {[%clk
0:00:16]} 54. Ke6 {[%clk 0:00:10.2]} 54... Nf3 {[%clk 0:00:15.5]} 55. Kf6 {[%clk
0:00:10.7]} 55... Nxh4 {[%clk 0:00:15.5]} 0-1

[Event "*** SCC Grand Prix: Titled Tuesday Blitz"]
[Site "Chess.com"]
[Date "2020.08.04"]
[Round "8"]
[White "AndrewDGreen"]
[Black "serena-maria"]
[Result "1-0"]
[WhiteElo "2395"]
[BlackElo "2257"]
[TimeControl "180+1"]
[EndTime "15:18:29 PDT"]
[Termination "AndrewDGreen won by checkmate"]

1. d4 {[%clk 0:03:00.9]} 1... Nf6 {[%clk 0:02:52.6]} 2. Nf3 {[%clk 0:03:00.7]}
2... g6 {[%clk 0:02:52.8]} 3. Nc3 {[%clk 0:03:00.4]} 3... d5 {[%clk 0:02:52.3]}
4. Bf4 {[%clk 0:03:00.5]} 4... Bg7 {[%clk 0:02:51.9]} 5. e3 {[%clk 0:03:00.9]}
5... O-O {[%clk 0:02:51.6]} 6. Be2 {[%clk 0:03:01.3]} 6... c5 {[%clk 0:02:52.2]}
7. O-O {[%clk 0:03:00.6]} 7... b6 {[%clk 0:02:50.6]} 8. Nb5 {[%clk 0:02:56.4]}
8... Nc6 {[%clk 0:02:33.2]} 9. Nc7 {[%clk 0:02:49.1]} 9... Rb8 {[%clk
0:02:33.1]} 10. Nb5 {[%clk 0:02:48.9]} 10... Ra8 {[%clk 0:02:28.3]} 11. dxc5
{[%clk 0:02:45.3]} 11... bxc5 {[%clk 0:02:25.4]} 12. c4 {[%clk 0:02:42.5]} 12...
Bb7 {[%clk 0:02:00.1]} 13. Nc7 {[%clk 0:02:35.8]} 13... Rc8 {[%clk 0:01:55.5]}
14. Nxd5 {[%clk 0:02:34.8]} 14... Nxd5 {[%clk 0:01:53.4]} 15. cxd5 {[%clk
0:02:35.4]} 15... Nb4 {[%clk 0:01:49.2]} 16. d6 {[%clk 0:02:22]} 16... exd6
{[%clk 0:01:35.6]} 17. Bxd6 {[%clk 0:02:16.5]} 17... Re8 {[%clk 0:01:36]} 18.
Rc1 {[%clk 0:02:08.6]} 18... Bxb2 {[%clk 0:01:17.9]} 19. Rxc5 {[%clk 0:02:05.1]}
19... Nxa2 {[%clk 0:00:42]} 20. Rxc8 {[%clk 0:01:46.5]} 20... Bxc8 {[%clk
0:00:33.5]} 21. Bb5 {[%clk 0:01:34]} 21... Nc3 {[%clk 0:00:29.2]} 22. Qb3 {[%clk
0:01:27]} 22... Nxb5 {[%clk 0:00:20.9]} 23. Qxb5 {[%clk 0:01:27.9]} 23... Bf6
{[%clk 0:00:13.1]} 24. Bf4 {[%clk 0:01:21.6]} 24... Bd7 {[%clk 0:00:12.5]} 25.
Qa6 {[%clk 0:01:20.7]} 25... Qa8 {[%clk 0:00:11.3]} 26. Qxf6 {[%clk 0:01:20.1]}
26... Re6 {[%clk 0:00:08.9]} 27. Qd4 {[%clk 0:01:19.2]} 27... Bc6 {[%clk
0:00:08.9]} 28. Bh6 {[%clk 0:01:14.5]} 28... f6 {[%clk 0:00:07.9]} 29. Rd1
{[%clk 0:01:09.2]} 29... Bxf3 {[%clk 0:00:07.5]} 30. Qd8+ {[%clk 0:01:02.6]}
30... Re8 {[%clk 0:00:07.3]} 31. Qxa8 {[%clk 0:01:02.6]} 31... Bxa8 {[%clk
0:00:06.3]} 32. Rd7 {[%clk 0:01:00.9]} 32... a5 {[%clk 0:00:03.4]} 33. Rg7+
{[%clk 0:00:59.7]} 33... Kh8 {[%clk 0:00:03.9]} 34. Ra7 {[%clk 0:01:00.3]} 34...
Bd5 {[%clk 0:00:02.8]} 35. Bg7+ {[%clk 0:00:56.5]} 35... Kg8 {[%clk 0:00:02.8]}
36. Bxf6 {[%clk 0:00:57]} 36... Ra8 {[%clk 0:00:02.5]} 37. Rg7+ {[%clk
0:00:54.5]} 37... Kf8 {[%clk 0:00:02.8]} 38. Rxh7 {[%clk 0:00:54.3]} 38... a4
{[%clk 0:00:03.4]} 39. Rh8+ {[%clk 0:00:53.4]} 39... Bg8 {[%clk 0:00:03.7]} 40.
Rh4 {[%clk 0:00:50.2]} 40... a3 {[%clk 0:00:03.6]} 41. Rd4 {[%clk 0:00:44.9]}
41... a2 {[%clk 0:00:02.9]} 42. Rd1 {[%clk 0:00:45.5]} 42... Bb3 {[%clk
0:00:02.4]} 43. Rc1 {[%clk 0:00:44.8]} 43... Bc2 {[%clk 0:00:01.9]} 44. h4
{[%clk 0:00:42.7]} 44... Bb1 {[%clk 0:00:02.3]} 45. Ba1 {[%clk 0:00:41.9]} 45...
Kf7 {[%clk 0:00:01.9]} 46. g3 {[%clk 0:00:42.3]} 46... Ra6 {[%clk 0:00:02]} 47.
Kg2 {[%clk 0:00:42.1]} 47... Ra4 {[%clk 0:00:02]} 48. Rc7+ {[%clk 0:00:41.9]}
48... Ke6 {[%clk 0:00:02.9]} 49. f3 {[%clk 0:00:40.3]} 49... Rb4 {[%clk
0:00:03.1]} 50. Bc3 {[%clk 0:00:38.5]} 50... Rb3 {[%clk 0:00:03.6]} 51. Bd4
{[%clk 0:00:37.1]} 51... Rd3 {[%clk 0:00:03.6]} 52. Ra7 {[%clk 0:00:35.5]} 52...
Rxd4 {[%clk 0:00:03.8]} 53. exd4 {[%clk 0:00:35.4]} 53... Kd5 {[%clk 0:00:04.7]}
54. Ra4 {[%clk 0:00:34]} 54... Kc6 {[%clk 0:00:03.4]} 55. Kf2 {[%clk 0:00:34.1]}
55... Kb5 {[%clk 0:00:03.8]} 56. Ra7 {[%clk 0:00:33.7]} 56... Kc4 {[%clk
0:00:04.1]} 57. Ke3 {[%clk 0:00:33.9]} 57... Kb3 {[%clk 0:00:04.3]} 58. d5
{[%clk 0:00:33.5]} 58... Kb2 {[%clk 0:00:03.3]} 59. Rb7+ {[%clk 0:00:33.1]}
59... Ka1 {[%clk 0:00:03.2]} 60. d6 {[%clk 0:00:31.4]} 60... Bf5 {[%clk
0:00:03.3]} 61. d7 {[%clk 0:00:28.9]} 61... g5 {[%clk 0:00:02.5]} 62. d8=Q
{[%clk 0:00:27.7]} 62... gxh4 {[%clk 0:00:01.7]} 63. Qd4# {[%clk 0:00:27.2]} 1-0